Cogmind - Beta 12 @@@ ROGUE MODE // 2023.03.07 @ 01:35:14 Player: Grimalkyne Result: Self-destructed Performance ------------- Evolutions (3) 1500 Regions Visited (6) 1200 Robots Destroyed (20) 100 Value Destroyed (400) 400 Prototype IDs (0) 0 Alien Tech Used (0) 0 Bonus (399) 399 TOTAL SCORE: 3599 Bonus ------- Follower Combat Kills 99 Aligned with FarCom 300 Cogmind --------- Core Integrity 478/700 Matter 281/300 Energy 160/160 System Corruption 3% Temperature Cool (0) Movement Hovering (150) Ox1 Location -7/Factory Parts ------- > --- POWER (1) -------- Light Nuclear Core > --- PROPULSION (4) --- Combat Airjet > --- UTILITY (6) ------ Improved Heat Sink Medium Storage Unit Advanced Visual Processing Unit Improved Signal Interpreter Terrain Scan Processor ECM Suite > --- WEAPON (2) ------- Light Assault Rifle > --- INVENTORY (10) --- Improved Carbon-fiber Leg Medium Storage Unit Advanced Weight Redist. System Terrain Scanner Advanced ECM Suite Utility Shielding Improved Shield Generator System Shield Particle Cannon Grenade Launcher Peak State ------------ > --- POWER ------------ Nuclear Core > --- PROPULSION ------- Improved Carbon-fiber Leg Airjet Gravmag System Combat Airjet > --- UTILITY ---------- Medium Storage Unit Trap Scanner Advanced Visual Processing Unit Terrain Scanner Terrain Scan Processor ECM Suite > --- WEAPON ----------- Pulse Rifle Gauss Rifle > --- INVENTORY -------- Light Nuclear Core Medium Storage Unit Advanced Weight Redist. System Terrain Scanner Advanced ECM Suite Utility Shielding Improved Shield Generator System Shield Light Assault Rifle Grenade Launcher [Rating: 39] Favorites ----------- Power Ion Engine Engine Ion Engine Power Core Nuclear Core Propulsion Hover Unit Leg Improved Carbon-fiber Leg Wheel Wheel Hover Unit Hover Unit Flight Unit Flight Unit Utility Visual Processing Unit Device Terrain Scanner Storage Medium Storage Unit Processor Visual Processing Unit Weapon Medium Laser Energy Gun Medium Laser Ballistic Gun Assault Rifle Launcher Grenade Launcher Build | -11 -10 -10 -10 -9 -8 -7 ------- Run | Jun Mat Min Exi Min Mat Fac Slots Evolved 6 | . . . . . 4 2 Power . | . . . . . . . Propulsion 2 | . . . . . 2 . Utility 4 | . . . . . 2 2 Weapon . | . . . . . . . Parts Attached 44 | 6 3 3 . 6 9 17 Power 6 | 1 . 1 . 1 2 1 Engine 4 | 1 . 1 . 1 1 . Core 2 | . . . . . 1 1 Reactor . | . . . . . . . Propulsion 10 | 2 . 1 . 2 3 2 Treads . | . . . . . . . Leg 1 | . . . . . . 1 Wheel 3 | 2 . 1 . . . . Hover 5 | . . . . 2 2 1 Flight 1 | . . . . . 1 . Utility 19 | 1 3 . . . 3 12 Device 10 | . . . . . 1 9 Storage 4 | 1 2 . . . 1 . Processor 5 | . 1 . . . 1 3 Hackware . | . . . . . . . Protection . | . . . . . . . Artifact . | . . . . . . . Weapon 9 | 2 . 1 . 3 1 2 Energy Gun 3 | 1 . . . 1 1 . Energy Cannon . | . . . . . . . Ballistic Gun 5 | 1 . . . 2 . 2 Ballistic Cannon . | . . . . . . . Launcher 1 | . . 1 . . . . Special Weapon . | . . . . . . . Impact Weapon . | . . . . . . . Slashing Weapon . | . . . . . . . Piercing Weapon . | . . . . . . . Special Melee Weapon . | . . . . . . . Unidentified Prototypes . | . . . . . . . Parts Lost 14 | . 1 1 . 4 . 8 Power 2 | . . . . 1 . 1 Propulsion 7 | . 1 1 . 1 . 4 Utility 1 | . . . . . . 1 Weapon 4 | . . . . 2 . 2 Highest Loss Streak 5 | . 1 1 . 4 . 5 To Critical Strikes . | . . . . . . . Average Slot Usage (%) 92 | . 91 90 85 84 98 95 Engine 8 | . 14 14 14 13 8 . Core 2 | . . . . . . 6 Leg 1 | . . . . . . 3 Wheel 10 | . 23 19 14 7 . . Hover 12 | . . . . 12 28 24 Device 8 | . . . . . 8 21 Storage 11 | . 14 14 14 14 9 7 Processor 14 | . 10 14 14 14 17 16 Energy Gun 10 | . 14 14 14 13 9 6 Ballistic Gun 7 | . 14 2 . 8 9 7 Launcher 2 | . . 11 14 . . . Naked Turns . | . . . . . . . Heaviest Build 30 | 14 29 30 30 29 27 30 Greatest Support 32 | 26 26 26 10 12 32 32 Greatest Overweight (x) 2 | . 1 2 2 2 1 1 Average Overweight (x) . | . . 1 2 2 . . Largest Inventory Capacity 15 | 8 15 15 15 15 15 10 Average Capacity 11 | 6 11 15 15 15 10 10 Most Carried 15 | 5 15 15 15 15 14 10 Average Carried 11 | 2 9 15 15 14 10 9 Final Capacity 15 | 8 15 15 15 15 10 10 Final Carried 15 | 4 15 15 15 15 10 10 Class Distribution -------------------- 70% | Mutant 15% | Scavenger-Scout 13% | Scout Dominant Class ---------------- Mutant | -10/Materials Mutant | -10/Mines Mutant | -10/Exiles Mutant | -9/Mines Scavenger-Scout | -8/Materials Mutant | -7/Factory Resources | -11 -10 -10 -10 -9 -8 -7 ----------- Run | Jun Mat Min Exi Min Mat Fac Matter Collected 707 | 215 125 33 . 61 92 181 Remotely . | . . . . . . . Salvage Created 472 | . 176 . . 85 30 181 Parts 42 | . 23 . . 4 4 11 Haulers Intercepted . | . . . . . . . Recyclers Shooed . | . . . . . . . Parts Field Recycled . | . . . . . . . Retrieved Matter . | . . . . . . . Parts Self-Destructed . | . . . . . . . Prevented . | . . . . . . . Kills | -11 -10 -10 -10 -9 -8 -7 ------- Run | Jun Mat Min Exi Min Mat Fac Combat Hostiles Destroyed 18 | . 9 . . 2 2 5 Guns 18 | . 9 . . 2 2 5 Classes Destroyed 5 | . 2 . . 2 . 1 Watcher 2 | . 2 . . . . . Swarmer 14 | . 9 . . . 2 3 Grunt 2 | . . . . 1 . 1 Brawler 1 | . . . . 1 . . Programmer 1 | . . . . . . 1 Best Kill Streak 3 | . 3 . . 2 2 3 Combat Bots Only 3 | . 3 . . 2 2 3 Max Kills in Single Turn 2 | . 1 . . 2 1 1 Gunslinging 1 | . . . . 1 . . Exploded . | . . . . . . . Melee . | . . . . . . . Uniques/NPCs Destroyed . | . . . . . . . Combat | -11 -10 -10 -10 -9 -8 -7 -------- Run | Jun Mat Min Exi Min Mat Fac Damage Taken 1562 | . 314 103 . 203 17 925 Core 389 | . 59 49 . 59 . 222 Absorbed by Shields . | . . . . . . . Core Remaining (%) 77 | 100 . . . 33 100 . Volleys Fired 66 | . 20 7 . 3 2 34 Largest 2 | . 2 1 . 2 2 2 Hottest 91 | . 70 50 . 70 83 91 Shots Fired 99 | . 40 7 . 5 4 43 Gun 99 | . 40 7 . 5 4 43 Cannon . | . . . . . . . Launcher . | . . . . . . . Special . | . . . . . . . Kinetic 64 | . 20 . . 3 2 39 Thermal 35 | . 20 7 . 2 2 4 Explosive . | . . . . . . . Electromagnetic . | . . . . . . . Robot Hit Streak 14 | . 8 3 . 3 4 14 Robot Miss Streak 3 | . 3 1 . 1 . 3 Penetration Max . | . . . . . . . Secondary Targets 4 | . 2 . . 1 1 . Max Gunslinging Chain 1 | . 1 . . 1 1 . Shots Hit Robots 63 | . 22 5 . 3 4 29 Core Hits 31 | . 12 1 . 3 3 12 Critical Kills . | . . . . . . . Critical Parts Destroyed . | . . . . . . . Critical Strikes 1 | . 1 . . . . . Burn 1 | . 1 . . . . . Melee Attacks . | . . . . . . . Impact . | . . . . . . . Slashing . | . . . . . . . Piercing . | . . . . . . . Sneak Attacks . | . . . . . . . Combat Hostiles . | . . . . . . . Follow-up Attacks . | . . . . . . . Damage Inflicted 836 | . 310 64 . 39 48 375 Guns 813 | . 305 64 . 39 48 357 Cannons . | . . . . . . . Explosions . | . . . . . . . Melee . | . . . . . . . Ramming 23 | . 5 . . . . 18 Kinetic 505 | . 129 . . 26 14 336 Thermal 308 | . 176 64 . 13 34 21 Explosive . | . . . . . . . Electromagnetic . | . . . . . . . Impact . | . . . . . . . Slashing . | . . . . . . . Piercing . | . . . . . . . Highest Corruption 3 | . . . . . . 3 Average Corruption 1 | . . . . . . 1 Corruption Purged . | . . . . . . . Corruption Blocked . | . . . . . . . Effects 5 | . . . . . . 5 Matter Fused 1 | . . . . . . 1 Data Loss (minor) 1 | . . . . . . 1 Data Loss (major) 1 | . . . . . . 1 Alerts 2 | . . . . . . 2 Overload Shots . | . . . . . . . Overflow Damage . | . . . . . . . Projectiles . | . . . . . . . Explosions . | . . . . . . . Melee . | . . . . . . . Knockbacks . | . . . . . . . Impact . | . . . . . . . Kinetic . | . . . . . . . Secondary . | . . . . . . . Self-Inflicted Damage 10 | . 2 . . . . 8 Shots . | . . . . . . . Rammed 3 | . 1 . . . . 2 Targets Rammed 3 | . 1 . . . . 2 Kicked . | . . . . . . . Crushed . | . . . . . . . Highest Temperature 94 | . 81 94 . 30 53 48 Average Temperature 28 | . 26 48 . 19 30 19 Received Heat Transfer 189 | . . 33 . 21 . 135 Siege Activations . | . . . . . . . Robots Corrupted . | . . . . . . . Combat Hostiles . | . . . . . . . Parts Fried . | . . . . . . . Impact Corruptions 1 | . . . . . . 1 Robots Melted . | . . . . . . . Combat Hostiles . | . . . . . . . Parts Melted 1 | . 1 . . . . . Heat Transferred 925 | . 592 185 . 37 74 37 Parts Sabotaged . | . . . . . . . Parts Stolen . | . . . . . . . Parts Stripped . | . . . . . . . Power Chain Reactions . | . . . . . . . Missiles Intercepted . | . . . . . . . Alert | -11 -10 -10 -10 -9 -8 -7 ------- Run | Jun Mat Min Exi Min Mat Fac Peak Influence 145 | . 145 56 . 50 118 97 Initial 53 | . . . . . . 53 Average 35 | . 63 12 . 41 44 24 Maximum Alert Level . | . . . . . . . Low Security (%) 100 | 100 100 100 . 100 100 100 Level 1 . | . . . . . . . Level 2 . | . . . . . . . Level 3 . | . . . . . . . Level 4 . | . . . . . . . Level 5 . | . . . . . . . High Security . | . . . . . . . Max Security . | . . . . . . . Squads Dispatched 3 | . . . . . 1 2 Investigation . | . . . . . . . Extermination 2 | . . . . . . 2 Reinforcement 1 | . . . . . 1 . Assault . | . . . . . . . Garrison . | . . . . . . . Intercept . | . . . . . . . Searches Triggered . | . . . . . . . Construction Impeded . | . . . . . . . Haulers Reinforced . | . . . . . . . Active Scanning Responses . | . . . . . . . Cargo Convoy Interrupts . | . . . . . . . Stealth | -11 -10 -10 -10 -9 -8 -7 --------- Run | Jun Mat Min Exi Min Mat Fac Distress Signals 3 | . 1 . . . 1 1 Communications Jammed . | . . . . . . . Distress Signals . | . . . . . . . Times Spotted 48 | . 13 2 . 6 8 19 Peak Tracking Total 9 | . 4 2 . 2 9 7 Tactical Retreats 6 | . . . . . 1 5 Traps | -11 -10 -10 -10 -9 -8 -7 ------- Run | Jun Mat Min Exi Min Mat Fac Traps Triggered . | . . . . . . . Indirectly . | . . . . . . . Trap Hack Attempts . | . . . . . . . Triggered . | . . . . . . . Disarmed . | . . . . . . . Reprogrammed . | . . . . . . . Reused . | . . . . . . . Traps Extracted . | . . . . . . . Installed . | . . . . . . . Triggered . | . . . . . . . Machines | -11 -10 -10 -10 -9 -8 -7 ---------- Run | Jun Mat Min Exi Min Mat Fac Machines Disabled . | . . . . . . . Max in Single Turn . | . . . . . . . Garrison Access 1 | . . . . . 1 . Machines Repaired . | . . . . . . . Machines Sabotaged . | . . . . . . . Overloaded Fab Kills . | . . . . . . . Hacking | -11 -10 -10 -10 -9 -8 -7 --------- Run | Jun Mat Min Exi Min Mat Fac Machines Accessed 14 | . 4 1 . . 4 5 Terminals 12 | . 4 . . . 3 5 Fabricators . | . . . . . . . Repair Stations . | . . . . . . . Recycling Units . | . . . . . . . Scanalyzers . | . . . . . . . Garrison Access 1 | . . . . . 1 . Total Hacks 20 | . 8 1 . . 6 5 Successful 9 | . 3 1 . . 2 3 Failed 11 | . 5 . . . 4 2 Catastrophic 1 | . . . . . . 1 Database Lockouts . | . . . . . . . Manual 5 | . . . 1 . 1 3 Terminals 17 | . 8 . . . 4 5 Fabricators . | . . . . . . . Repair Stations . | . . . . . . . Recycling Units . | . . . . . . . Scanalyzers . | . . . . . . . Garrison Access 2 | . . . . . 2 . Terminal Hacks 8 | . 3 1 . . 1 3 Open Door 1 | . . 1 . . . . Level Access Points 1 | . . . . . 1 . Unreport Threat 3 | . 1 . . . . 2 Locate Traps 2 | . 1 . . . . 1 Zone Layout 1 | . 1 . . . . . Fabricator Hacks . | . . . . . . . Repair Station Hacks . | . . . . . . . Recycling Unit Hacks . | . . . . . . . Scanalyzer . | . . . . . . . Garrison Access Hacks 1 | . . . . . 1 . Seal Access 1 | . . . . . 1 . Unauthorized Hacks . | . . . . . . . Terminals . | . . . . . . . Fabricators . | . . . . . . . Repair Stations . | . . . . . . . Recycling Units . | . . . . . . . Scanalyzers . | . . . . . . . Garrison Access . | . . . . . . . Data Cores Recovered . | . . . . . . . Used . | . . . . . . . Hacking Detections 10 | . 2 . . . 3 5 Full Trace Events . | . . . . . . . Feedback Events . | . . . . . . . Feedback Blocked . | . . . . . . . Robot Schematics Acquired . | . . . . . . . Robots Built . | . . . . . . . Authchips . | . . . . . . . Time . | . . . . . . . Total Robot Build Rating . | . . . . . . . Part Schematics Acquired . | . . . . . . . Parts Built . | . . . . . . . Authchips . | . . . . . . . Time . | . . . . . . . Total Part Build Rating . | . . . . . . . Parts Repaired . | . . . . . . . Time . | . . . . . . . Parts Recycled . | . . . . . . . Recycled Matter . | . . . . . . . Retrieved Matter . | . . . . . . . Retrieved Components . | . . . . . . . Parts Scanalyzed . | . . . . . . . Part Schematics Acquired . | . . . . . . . Parts Damaged . | . . . . . . . Bothacking | -11 -10 -10 -10 -9 -8 -7 ------------ Run | Jun Mat Min Exi Min Mat Fac Used RIF Installer . | . . . . . . . Robots Hacked . | . . . . . . . Non-combat . | . . . . . . . Combat . | . . . . . . . Robot Hacks Applied . | . . . . . . . Relay Couplers Released 4 | . . . . . . 4 Programmers 4 | . . . . . . 4 Fabnet Peak Effective % . | . . . . . . . Robots Rewired . | . . . . . . . Allies Hacked . | . . . . . . . Hacks Repelled . | . . . . . . . Allies | -11 -10 -10 -10 -9 -8 -7 -------- Run | Jun Mat Min Exi Min Mat Fac Total Allies 4 | . . 3 . 1 . . Largest Group 3 | . . 3 1 1 . . Highest-Rated Group 40 | . . 40 16 31 . . Highest-Rated Ally 31 | . . 16 16 31 . . Total Orders . | . . . . . . . Ally Attacks 26 | . . 13 . 13 . . Total Damage 302 | . . 123 . 179 . . Kills 6 | . . 2 . 4 . . Allies Corrupted 1 | . . . . 1 . . Allies Melted . | . . . . . . . Intel | -11 -10 -10 -10 -9 -8 -7 ------- Run | Jun Mat Min Exi Min Mat Fac Robot Analysis Total . | . . . . . . . Derelict Logs Recovered 2 | . . 1 . 1 . . Drone Launches . | . . . . . . . Drone Recoveries . | . . . . . . . Exploration | -11 -10 -10 -10 -9 -8 -7 ------------- Run | Jun Mat Min Exi Min Mat Fac Turns Passed 3768 | 46 889 501 230 441 282 1379 Spaces Moved 3215 | 42 715 395 202 303 320 1238 Core 10 | 10 . . . . . . Treads . | . . . . . . . Legs . | . . . . . . . Wheels 1542 | 32 715 395 202 198 . . Hover 1663 | . . . . 105 320 1238 Flight . | . . . . . . . Fastest Speed 50 | 50 90 105 110 110 53 53 Average Speed 91 | 79 98 111 110 132 58 76 Slowest Speed 176 | 90 115 115 110 176 121 160 Overloaded Moves . | . . . . . . . Propulsion Burnouts . | . . . . . . . Robots Hopped . | . . . . . . . Cave-ins Triggered . | . . . . . . . Exploration Rate (%) 54 | 3 95 91 62 66 36 28 Regions Visited 6 Branch Regions 3 Pre-discovered Areas 1 | . . . . 1 . . Known Exits Taken 1 | . . . . . 1 . Unknown Exits Taken 5 | 1 1 1 1 1 . . Scrap Searched 3 | . . 1 . 2 . . Spaces Dug . | . . . . . . . Terrain Destroyed . | . . . . . . . Melee . | . . . . . . . Projectile . | . . . . . . . AOE . | . . . . . . . Terrain Rammed . | . . . . . . . Walls Destroyed . | . . . . . . . Machines Disabled . | . . . . . . . Actions | -11 -10 -10 -10 -9 -8 -7 --------- Run | Jun Mat Min Exi Min Mat Fac Total 3952 | 52 858 449 209 335 414 1635 Wait 573 | . 104 44 8 21 70 326 Move 3209 | 41 714 394 201 302 319 1238 Hop . | . . . . . . . Pick Up 32 | 5 13 . . 3 4 7 Fast Attach 16 | 5 . 1 . 2 3 5 Attach 14 | 1 1 . . 3 3 6 Detach 3 | . . . . . . 3 Swap 14 | . 2 2 . 1 3 6 Drop 22 | . 3 1 . . 10 8 Fire 66 | . 20 7 . 3 2 34 Melee . | . . . . . . . Ram 3 | . 1 . . . . 2 Kick . | . . . . . . . Crush . | . . . . . . . Escape Stasis . | . . . . . . . Rewire . | . . . . . . . Trap . | . . . . . . . Miscellaneous . | . . . . . . . Route ------- -11/Junkyard -10/Materials (discovered 5 exits: [*Mat x3] / *Min x2) -10/Mines (discovered 3 exits: [*Mat x2] / *Exi) -10/Exiles (discovered 2 exits: [*Min x2]) -9/Mines -8/Materials (discovered 3 exits: *Fac x3) -7/Factory (discovered 1 exit: [*Fac]) History --------- Turn | Location | Event 13 | -11/Junkyard | Discovered new exit (range 16) 47 | -11/Junkyard | Entered Materials 108 | -10/Materials | Discovered new exit (range 4) 191 | -10/Materials | Discovered new exit (range 12) 214 | -10/Materials | Discovered new exit (range 11) 305 | -10/Materials | Discovered new exit (range 18) 310 | -10/Materials | Build established: Mutant 699 | -10/Materials | Discovered new exit (range 18) 936 | -10/Materials | Entered Mines 938 | -10/Mines | Discovered new exit (range 13) 1156 | -10/Mines | Discovered new exit (range 5) 1166 | -10/Mines | Assisted by bots powering up and referring to "LRC-V3" 1339 | -10/Mines | Met a Derelict who couldn't figure out how to use a Trap Extractor 1432 | -10/Mines | Deemed a non-threat by the Exiles lab entrance 1432 | -10/Mines | Discovered new exit (range 5) 1437 | -10/Mines | Entered Exiles 1437 | -10/Exiles | Accompanied by 1 ally 1452 | -10/Exiles | Discovered new exit (range 17) 1465 | -10/Exiles | Met 8R-AWN 1484 | -10/Exiles | Met EX-HEX 1516 | -10/Exiles | Met EX-BIN 1528 | -10/Exiles | Aligned with FarCom system 1529 | -10/Exiles | Given EX-Vault access code 1554 | -10/Exiles | Opened EX-Vault 1577 | -10/Exiles | Warned to stay clear of 0b10 Research branches 1599 | -10/Exiles | Exiles lab attacked by MAIN.C 1649 | -10/Exiles | Discovered new exit (range 12) 1667 | -10/Exiles | Entered Mines 1667 | -9/Mines | Accompanied by 1 ally 1723 | -9/Mines | Received a Mining Laser from a helpful Derelict 1724 | -9/Mines | Met a Derelict bent on vengeance 1838 | -9/Mines | Assembled infested the area 1843 | -9/Mines | Assisted by a Guerilla fighting off Assembled 1917 | -9/Mines | Core integrity fell below 50% 1950 | -9/Mines | Lost 4 parts (1p1n2w) 2062 | -9/Mines | Discovered new exit (range 11) 2090 | -9/Mines | Learned location of Zion (-6) 2108 | -9/Mines | Entered Materials 2108 | -8/Materials | Evolved 4 slots: Propulsion x2, Utility x2 2248 | -8/Materials | Identified exit to Factory 2390 | -8/Materials | Entered Factory 2390 | -7/Factory | Evolved 2 slots: Utility x2 2412 | -7/Factory | Build established: Scavenger-Scout 2495 | -7/Factory | Discovered new exit (range 5) 3206 | -7/Factory | Build established: Mutant 3704 | -7/Factory | Lost 5 parts (1p2n1u1w) 3769 | -7/Factory | Self-destructed Last Messages --------------- 03647_ R-06 Scavenger collects Autogun. 03651_ R-06 Scavenger collects VTOL Module. 03655_ Terrain Scanner destroyed. 03656_ S-27 Virus destroyed. 03657_ Acquired 30 matter. 03662_ R-06 Scavenger collects VTOL Module. 03665_ Airjet destroyed. 03666_ R-06 Scavenger collects VTOL Module. 03669_ Nuclear Core destroyed. 03673_ Gravmag System destroyed. 03684_ G-47 Trooper destroyed. 03685_ Acquired 56 matter. 03686_ Acquired 9 matter. 03696_ R-06 Scavenger collects Lgt. Nuclear Core. 03697_ Acquired Imp. Heat Sink. 03699_ R-06 Scavenger collects VTOL Module. 03705_ Dropped ECM Suite. 03706_ Acquired ECM Suite. 03741_ Acquired Particle Cannon. 03757_ Acquired 21 matter. Map ----- +----------------------------------------------------+ | ??? ?######+#######?#?#??? ?????????????????? | | ??? ?# #####???# = # ??????????????? | | ??? ?# """"""" #?####???## #?? ?? ???????????? | | ?????# """"""" ##??#?#???# #??##?????????????? | | ?????# """"""" ##?##?##### #?#???????????????? | | ?????+ """"""" ########### ##########????????? | | ?? ??# # # # #????????? | | ???? # """"""" # = # # #????????? | | ??? # """"""" # # # #????????? | | ?#?#?# """"""" # ! + + ! ! #????????? | | ####?#"" """"""" + # # #????????? | | #?#"T o # # # #????????? | | ###"" # # # [ #????????? | | #?# # # # #????????? | | ###+##################### # #????????? | | ### ##################### ##########????????? | | ### # # """""" #w ##??#?#?#?????????? | | #?# # # ""S""" # ##?????#??????????? | | ##+### # # """^ # ##??#?????????????? | | # #^ ^ + ##?#???#??????????? | | + + # #?#?##??????#?????? | | # #+############ ####?#??#?????????? | | ######## #### """" # ####??#??#???????? | | + """" # r !#?####???????????? | | #### """" p T #????????#???????? | | #### """"@# ################?? | | #### # #?# #?? | | ######## ####= ### ##### ]]] ### | | ######+####?### ############# #?### ]] #?# | | ??? ? ? ## ### # ##### ]] #?? | | ? ? ?""" ?"" ## ### [ ""# ##### #?? | | ??? """ """ ## ### ""# ##### #?# | | ?? """ """ ## ### """ Y"# ##### ### | | ??? ? ## ### """ ""# ## #?# | | ?? ?# ### """ ""#### ## ### | | ??#+#######?### ### ##?# ## ##? | | ??? ??? ???? # ### ##?# ## ### | | ??? # ??? # ########+####### ## ### | | ?????? ?? ????# #? #??# ########+######## | | ??? ?? ?? ??##################^ * + | | ???????????? ?????# # ^ # | | ???????? ? ???##??# """ """ T +^ ""# "" | | ??????? ???? ?#???# """ """ # """" T"# """" | | ???????? ? ???###?# """ """ # """" ""# """" | | ?????????#???#???## # """" # | | ???????????#?##??## """ """ # ^ ^ ###+## | | ??????????????????+ """ """ # """" | | ?????????????#??#?# """ """ # """" ^ | | ????????#?????##??# # """" | | ????????????????### # | +----------------------------------------------------+ Best States ------------- Heat Dissipation 48 Energy Generation 14 Energy Capacity 265 Matter Stores 300 Matter Capacity 300 Sight Range 20 Terrain Scan Range 14 Terrain Scan Density 85 ECM Strength 1 Evasion (%) 54 Item Schematics ----------------- None Robot Schematics ------------------ None Fabricated ------------ Nothing Alien Tech Used ----------------- None Achievements -------------- None Challenges ------------ None Game ------ Seed SuperchargedPointComputer Manual? 0 Play Time 00:54:19 Cumulative 43.3 hours Start 2023.03.07 @ 00:31:02 End 2023.03.07 @ 01:35:14 Sessions 1 Manual Loads 0 Difficulty Rogue Special Mode None Game No. 34 Rogue 33 Adventurer 1 Explorer 0 Win Type - Total 0 Types 0/0/0/0/0/0/0/0/0 Lore% 21 Gallery% 35 Achievement% 26 Wizard Run 0 Options --------- ASCII 0 Keyboard 1 Movement Numpad Keybinds 0 Fullscreen 2 Font 12/Smallcaps Map View 83x54 Tactical HUD 1 Map Filters NONE Filters NONE Steam 1 RUN: 3b52c54c-d652-4b58-8e40-d36d78e3b018